Cogmind - Beta 11 @@@ ROGUE MODE // 2022.03.18 @ 12:11:33 Player: Midas Result: Destroyed by G-47 Trooper with Particle Gun Performance ------------- Evolutions (1) 500 Regions Visited (2) 400 Robots Destroyed (9) 45 Value Destroyed (230) 230 Prototype IDs (1) 20 Alien Tech Used (0) 0 Bonus (200) 200 TOTAL SCORE: 1395 Bonus ------- Pacifist 200 Cogmind --------- Core Integrity 0/400 Matter 225/300 Energy 279/280 System Corruption 0% Temperature Cool (9) Movement Rolling (95) Ox1 Location -9/Materials Parts ------- > --- POWER (1) -------- Cooled Ion Engine > --- PROPULSION (3) --- Wheel > --- UTILITY (3) ------ Medium Storage Unit Weight Redist. System > --- WEAPON (2) ------- (None) > --- INVENTORY (10) --- Medium Storage Unit Small Laser Peak State ------------ > --- POWER ------------ Cooled Ion Engine > --- PROPULSION ------- Aluminum Leg > --- UTILITY ---------- Medium Storage Unit Weight Redist. System Weight Redist. System > --- WEAPON ----------- Small Laser Grenade Launcher > --- INVENTORY -------- Medium Storage Unit Small Laser [Rating: 11] Favorites ----------- Power Ion Engine Engine Ion Engine Propulsion Aluminum Leg Treads Light Treads Leg Aluminum Leg Wheel Wheel Utility Medium Storage Unit Device Weight Redist. System Storage Medium Storage Unit Weapon Light Assault Rifle Energy Gun Small Laser Ballistic Gun Light Assault Rifle Launcher Grenade Launcher Build | -11 -10 -9 ------- Run | Scr Mat Mat Slots Evolved 2 | . . 2 Power . | . . . Propulsion 1 | . . 1 Utility 1 | . . 1 Weapon . | . . . Parts Attached 12 | . 3 9 Power 2 | . . 2 Engine 2 | . . 2 Core . | . . . Reactor . | . . . Propulsion 4 | . . 4 Treads 2 | . . 2 Leg 1 | . . 1 Wheel 1 | . . 1 Hover . | . . . Flight . | . . . Utility 3 | . 2 1 Device 2 | . 1 1 Storage 1 | . 1 . Processor . | . . . Hackware . | . . . Protection . | . . . Artifact . | . . . Weapon 3 | . 1 2 Energy Gun 1 | . . 1 Energy Cannon . | . . . Ballistic Gun 1 | . 1 . Ballistic Cannon . | . . . Launcher 1 | . . 1 Special Weapon . | . . . Impact Weapon . | . . . Slashing Weapon . | . . . Piercing Weapon . | . . . Special Melee Weapon . | . . . Unidentified Prototypes 1 | . . 1 Parts Lost 12 | . . 12 Power 2 | . . 2 Propulsion 5 | . . 5 Utility 1 | . . 1 Weapon 4 | . . 4 Highest Loss Streak 7 | . . 7 To Critical Strikes . | . . . Average Slot Usage (%) 77 | . 92 70 Engine 10 | . 14 9 Treads 6 | . . 10 Leg 14 | . 28 8 Device 10 | . 7 11 Storage 11 | . 14 11 Energy Gun 13 | . 22 9 Ballistic Gun 7 | . 5 8 Naked Turns . | . . . Heaviest Build 22 | 13 18 22 Greatest Support 46 | 20 26 46 Greatest Overweight (x) 2 | . . 2 Average Overweight (x) . | . . . Largest Inventory Capacity 10 | 8 10 10 Average Capacity 9 | 8 9 10 Most Carried 10 | 6 10 10 Average Carried 7 | 6 8 6 Final Capacity 10 | 8 10 10 Final Carried 10 | 6 10 2 Class Distribution -------------------- 100% | Mutant Dominant Class ---------------- Mutant | -10/Materials Mutant | -9/Materials Resources | -11 -10 -9 ----------- Run | Scr Mat Mat Matter Collected 253 | 200 . 53 Remotely . | . . . Salvage Created 270 | . . 270 Parts 22 | . . 22 Haulers Intercepted . | . . . Recyclers Shooed . | . . . Parts Field Recycled . | . . . Retrieved Matter . | . . . Parts Self-Destructed . | . . . Prevented . | . . . Kills | -11 -10 -9 ------- Run | Scr Mat Mat Combat Hostiles Destroyed 5 | . . 5 Guns 3 | . . 3 AOE 2 | . . 2 Classes Destroyed 4 | . . 4 Worker 1 | . . 1 Builder 2 | . . 2 Watcher 1 | . . 1 Grunt 5 | . . 5 Best Kill Streak 6 | . . 6 Combat Bots Only 2 | . . 2 Max Kills in Single Turn 2 | . . 2 Gunslinging . | . . . Exploded 2 | . . 2 Melee . | . . . Uniques/NPCs Destroyed . | . . . Combat | -11 -10 -9 -------- Run | Scr Mat Mat Damage Taken 1557 | . . 1557 Core 412 | . . 412 Absorbed by Shields . | . . . Core Remaining (%) 100 | 100 100 . Volleys Fired 31 | . . 31 Largest 2 | . . 2 Hottest 70 | . . 70 Shots Fired 47 | . . 47 Gun 41 | . . 41 Cannon . | . . . Launcher 6 | . . 6 Special . | . . . Kinetic 22 | . . 22 Thermal 15 | . . 15 Explosive 6 | . . 6 Electromagnetic 4 | . . 4 Robot Hit Streak 11 | . . 11 Robot Miss Streak 6 | . . 6 Penetration Max . | . . . Secondary Targets 1 | . . 1 Max Gunslinging Chain 1 | . . 1 Shots Hit Robots 28 | . . 28 Core Hits 20 | . . 20 Critical Kills . | . . . Critical Parts Destroyed . | . . . Critical Strikes . | . . . Melee Attacks . | . . . Impact . | . . . Slashing . | . . . Piercing . | . . . Sneak Attacks . | . . . Combat Hostiles . | . . . Follow-up Attacks . | . . . Damage Inflicted 555 | . . 555 Guns 239 | . . 239 Cannons . | . . . Explosions 309 | . . 309 Melee . | . . . Ramming 7 | . . 7 Kinetic 128 | . . 128 Thermal 98 | . . 98 Explosive 309 | . . 309 Electromagnetic 13 | . . 13 Impact . | . . . Slashing . | . . . Piercing . | . . . Highest Corruption . | . . . Average Corruption . | . . . Corruption Purged . | . . . Corruption Blocked . | . . . Overload Shots . | . . . Overflow Damage 21 | . . 21 Projectiles . | . . . Explosions 21 | . . 21 Melee . | . . . Knockbacks . | . . . Impact . | . . . Kinetic . | . . . Secondary . | . . . Self-Inflicted Damage 76 | . . 76 Shots 2 | . . 2 Rammed 2 | . . 2 Targets Rammed 4 | . . 4 Kicked 2 | . . 2 Crushed . | . . . Highest Temperature 49 | . . 49 Average Temperature 17 | . . 17 Received Heat Transfer 801 | . . 801 Siege Activations . | . . . Robots Corrupted . | . . . Combat Hostiles . | . . . Parts Fried . | . . . Impact Corruptions . | . . . Robots Melted . | . . . Combat Hostiles . | . . . Parts Melted . | . . . Heat Transferred 225 | . . 225 Parts Sabotaged . | . . . Parts Stolen . | . . . Parts Stripped . | . . . Power Chain Reactions . | . . . Missiles Intercepted . | . . . Alert | -11 -10 -9 ------- Run | Scr Mat Mat Peak Influence 259 | . 15 259 Initial 5 | . . 5 Average 36 | . 7 50 Maximum Alert Level 1 | . . 1 Low Security (%) 97 | 100 100 95 Level 1 2 | . . 4 Level 2 . | . . . Level 3 . | . . . Level 4 . | . . . Level 5 . | . . . High Security . | . . . Max Security . | . . . Squads Dispatched 2 | . . 2 Investigation . | . . . Extermination . | . . . Reinforcement 2 | . . 2 Assault . | . . . Garrison . | . . . Intercept . | . . . Searches Triggered . | . . . Construction Impeded 1 | . . 1 Haulers Reinforced . | . . . Active Scanning Responses . | . . . Cargo Convoy Interrupts . | . . . Stealth | -11 -10 -9 --------- Run | Scr Mat Mat Distress Signals . | . . . Communications Jammed . | . . . Distress Signals . | . . . Times Spotted 17 | . 1 16 Peak Tracking Total 6 | . 1 6 Tactical Retreats 2 | . . 2 Traps | -11 -10 -9 ------- Run | Scr Mat Mat Traps Triggered 1 | . . 1 Indirectly . | . . . Trap Hack Attempts . | . . . Triggered . | . . . Disarmed . | . . . Reprogrammed . | . . . Reused . | . . . Traps Extracted . | . . . Installed . | . . . Triggered . | . . . Machines | -11 -10 -9 ---------- Run | Scr Mat Mat Machines Disabled 2 | . . 2 Max in Single Turn 1 | . . 1 Machines Sabotaged . | . . . Garrisons Compromised . | . . . Overloaded Fab Kills . | . . . Hacking | -11 -10 -9 --------- Run | Scr Mat Mat Machines Accessed . | . . . Terminals . | . . . Fabricators . | . . . Repair Stations . | . . . Recycling Units . | . . . Scanalyzers . | . . . Garrison Access . | . . . Total Hacks . | . . . Successful . | . . . Failed . | . . . Catastrophic . | . . . Database Lockouts . | . . . Manual . | . . . Terminals . | . . . Fabricators . | . . . Repair Stations . | . . . Recycling Units . | . . . Scanalyzers . | . . . Garrison Access . | . . . Terminal Hacks . | . . . Fabricator Hacks . | . . . Repair Station Hacks . | . . . Recycling Unit Hacks . | . . . Scanalyzer . | . . . Garrison Access Hacks . | . . . Unauthorized Hacks . | . . . Terminals . | . . . Fabricators . | . . . Repair Stations . | . . . Recycling Units . | . . . Scanalyzers . | . . . Garrison Access . | . . . Data Cores Recovered . | . . . Used . | . . . Hacking Detections . | . . . Full Trace Events . | . . . Feedback Events . | . . . Feedback Blocked . | . . . Robot Schematics Acquired . | . . . Robots Built . | . . . Authchips . | . . . Time . | . . . Total Robot Build Rating . | . . . Part Schematics Acquired . | . . . Parts Built . | . . . Authchips . | . . . Time . | . . . Total Part Build Rating . | . . . Parts Repaired . | . . . Time . | . . . Parts Recycled . | . . . Recycled Matter . | . . . Retrieved Matter . | . . . Retrieved Components . | . . . Parts Scanalyzed . | . . . Part Schematics Acquired . | . . . Parts Damaged . | . . . Bothacking | -11 -10 -9 ------------ Run | Scr Mat Mat Used RIF Installer . | . . . Robots Hacked . | . . . Non-combat . | . . . Combat . | . . . Robot Hacks Applied . | . . . Relay Couplers Released . | . . . Fabnet Peak Effective % . | . . . Robots Rewired . | . . . Allies Hacked . | . . . Hacks Repelled . | . . . Allies | -11 -10 -9 -------- Run | Scr Mat Mat Total Allies . | . . . Largest Group . | . . . Highest-Rated Group . | . . . Highest-Rated Ally . | . . . Total Orders . | . . . Ally Attacks . | . . . Total Damage . | . . . Kills . | . . . Allies Corrupted . | . . . Allies Melted . | . . . Intel | -11 -10 -9 ------- Run | Scr Mat Mat Robot Analysis Total . | . . . Derelict Logs Recovered . | . . . Drone Launches . | . . . Drone Recoveries . | . . . Exploration | -11 -10 -9 ------------- Run | Scr Mat Mat Turns Passed 511 | 2 163 346 Spaces Moved 313 | 2 129 182 Core 9 | . . 9 Treads 82 | . . 82 Legs 216 | 2 129 85 Wheels 6 | . . 6 Hover . | . . . Flight . | . . . Fastest Speed 95 | 120 120 95 Average Speed 131 | 120 120 140 Slowest Speed 190 | 120 120 190 Overloaded Moves . | . . . Propulsion Burnouts . | . . . Robots Hopped . | . . . Cave-ins Triggered . | . . . Exploration Rate (%) 19 | 2 26 30 Regions Visited 2 Branch Regions . Pre-discovered Areas . | . . . Known Exits Taken . | . . . Unknown Exits Taken 2 | 1 1 . Scrap Searched . | . . . Spaces Dug . | . . . Terrain Destroyed 31 | . . 31 Melee . | . . . Projectile . | . . . AOE 31 | . . 31 Terrain Rammed . | . . . Walls Destroyed . | . . . Machines Disabled . | . . . Actions | -11 -10 -9 --------- Run | Scr Mat Mat Total 367 | 1 136 230 Wait . | . . . Move 311 | 1 128 182 Hop . | . . . Pick Up 5 | . 3 2 Fast Attach 4 | . 3 1 Attach 8 | . . 8 Detach 1 | . 1 . Swap . | . . . Drop 3 | . 1 2 Fire 31 | . . 31 Melee . | . . . Ram . | . . . Kick 2 | . . 2 Crush 2 | . . 2 Escape Stasis . | . . . Rewire . | . . . Trap . | . . . Miscellaneous . | . . . Route ------- -11/Scrapyard -10/Materials -9/Materials History --------- Turn | Location | Event 1 | -11/Scrapyard | Discovered new exit (range 1) 3 | -11/Scrapyard | Entered Materials 146 | -10/Materials | Discovered new exit (range 16) 166 | -10/Materials | Entered another Materials area 166 | -9/Materials | Evolved 2 slots: Propulsion x1, Utility x1 323 | -9/Materials | Build established: Mutant 326 | -9/Materials | Lost 4 parts (1p2n1w) 449 | -9/Materials | Core integrity fell below 50% 480 | -9/Materials | Core integrity fell below 20% 512 | -9/Materials | Destroyed by G-47 Trooper with Particle Gun Last Messages --------------- 00493_ K-01 Serf collects debris. 00493_ U-05 Engineer lays Concrete. 00494_ U-05 Engineer destroyed. 00495_ U-05 Engineer builds a Wall. 00496_ U-05 Engineer destroyed. 00496_ K-01 Serf collects debris. 00497_ U-05 Engineer builds a Wall. 00498_ K-01 Serf destroyed. 00498_ Terminal disabled. 00499_ U-05 Engineer builds a Wall. 00500_ W-16 Scout destroyed. 00500_ Grenade Launcher destroyed. 00502_ Acquired 15 matter. 00506_ Acquired Wheel. 00506_ R-06 Scavenger collects Aluminum Leg. 00508_ U-05 Engineer lays Concrete. 00508_ Aluminum Leg destroyed. 00509_ U-05 Engineer lays Concrete. 00511_ U-05 Engineer builds a Wall. 00511_ R-06 Scavenger collects Lgt. Ion Engine. Map ----- +----------------------------------------------------+ | ?????????????????????????????????????????????????? | | ?????????????????????????????????????????????????? | | ?????????????????????????????????????????????????? | | ?????????????????????????????????????????????????? | | ?????????????????????????????????????????????????? | | ?????????????????????????????????????????????????? | | ?????????????????????????????????????????????????? | | ?????????????????????????????????????????????????? | | ?????????????????????????????????????????????????? | | ?????????????????????????????????????????????????? | | ?????????????????????????????????????????????????? | | ?????????????????????????????????????????????????? | | ?????????????????????????????????????????????????? | | ?????????????????????????????????????????????????? | | ????????????????#????????????????????????????????? | | ????????????????# "?"???????????????????????????? | | ????????????????# """???????????????????????????? | | ????????????????#! """ ??????????????????????????? | | ????????????????# ?####?????????????????????? | | ??????????????????? ## ####??????????????????? | | ???????????????######## #??????????????????? | | ????????######?# g ##??????????????????? | | ?????# """"" #?# """ "" # #????????????????? | | ?????# """"" #?# """""" # #???????????????? | | ?????? """"" #?# """" # #??????????????? | | ????? ??# @ # #????#?????????? | | ?????? ??# g u# #??? #?????????? | | "??#####/########### # # #?? #?????????? | | T"##! #??##### w ## #### ####??????? | | ""## """ [ #### #??????? | | ""## """ + ! #??????? | | ## """ #### %r! +??????? | | ## ######+# r %= #??????? | | ## """ # # ### ! #??????? | | # ## """ # # ????? | | # ## """ # + ????? | | # ## # # """"" ????? | | # #####/##### ! #"" w""""""""" ?????? | | # ### #?# #"T """ """ ? ??????? | | # T" #?# #"" ! ????????????? | | + " #?# # ????????????? | | # #?# # ???????????? | | ### #### #?######### #"T"####??????????? | | #?# #??## ##?????????## #####?????????????? | | ###/##### #???????????# #?????????????????? | | # #???????????# #?????????????????? | | + +???????????+ #?????????????????? | | # # ??????????# #?????????????????? | | # # ?????????# #?????????????????? | | ##+###### #? "????????# #?????????????????? | +----------------------------------------------------+ Best States ------------- Heat Dissipation 28 Energy Generation 14 Energy Capacity 280 Matter Stores 300 Matter Capacity 300 Sight Range 16 Terrain Scan Density 10 Additional Mass Support 6 Evasion (%) 55 Recoil Reduction 2 Item Schematics ----------------- None Robot Schematics ------------------ None Fabricated ------------ Nothing Alien Tech Used ----------------- None Achievements -------------- None Challenges ------------ None Game ------ Seed SniperBiometalStreamer Manual? 0 Play Time 00:08:44 Cumulative 25.0 hours Start 2022.03.18 @ 11:26:42 End 2022.03.18 @ 12:11:33 Sessions 2 Manual Loads 0 Difficulty Rogue Special Mode None Game No. 40 Rogue 25 Adventurer 15 Explorer 0 Win Type - Total 0 Types 0/0/0/0/0/0/0/0/0 Lore% 17 Gallery% 26 Achievement% 19 Wizard Run 0 Options --------- ASCII 0 Keyboard 0 Movement Arrows Keybinds 0 Fullscreen 0 Font 20/SmallcapsGlow Map View 113x50 Tactical HUD 1 Map Filters NONE Filters NONE Steam 1 RUN: 7b6dd802-d89a-4336-87af-776c15a18567